Cogmind - Beta 13 @@@ ROGUE MODE // 2024.04.26 @ 20:02:09 Player: Dosh Result: Destroyed by D-63 Destroyer with Heavy Rocket Launcher Performance ------------- Evolutions (6) 3000 Regions Visited (16) 3200 Robots Destroyed (244) 1220 Value Destroyed (11527) 11527 Prototype IDs (226) 4520 Alien Tech Used (0) 0 Bonus (7380) 7380 TOTAL SCORE: 30847 Bonus ------- High Alert Combat Kills 638 Follower Combat Kills 1542 Network Hubs Disabled 600 Met Data Miner 300 Used Data Conduit 3000 Built Enhanced Grunts 300 Met R17 at Cetus 500 Pursued by Intercept 500 Cogmind --------- Core Integrity 0/1150 Matter 214/300 Energy 10/100 System Corruption 15% Temperature Cool (0) Movement Walking (115) Location -4/Armory Parts ------- > --- POWER (2) -------- (None) > --- PROPULSION (5) --- Enhanced Biometal Leg Centrium Leg Centrium Leg Centrium Leg > --- UTILITY (10) ----- High-capacity Storage Unit Enhanced Optical Array Core Analyzer Core Analyzer Armor Integrity Analyzer Nanoactuators Improved Hacking Suite > --- WEAPON (2) ------- Great Axe > --- INVENTORY (20) --- Light Nuclear Core Micro Fission Core Flexi-carbon Leg Flexi-carbon Leg Flexi-carbon Leg Myomer Leg Centrium Leg Centrium Leg Centrium Leg Antigrav System Advanced Terrain Scan Processor Experimental Targeting Computer Experimental Phase Shifter Experimental EM Disruption Field Improved System Shield Peak State ------------ > --- POWER ------------ Quantum Reactor Quantum Reactor > --- PROPULSION ------- Enhanced Flexi-carbon Leg Enhanced Biometal Leg Enhanced Biometal Leg Enhanced Biometal Leg Enhanced Biometal Leg > --- UTILITY ---------- Advanced Power Amplifier High-capacity Storage Unit Enhanced Optical Array Advanced Melee Analysis Suite Microactuators Experimental Phase Shifter Layered Medium Armor Plating Layered Medium Armor Plating Force Field Improved Hacking Suite > --- WEAPON ----------- Smartbomb Launcher > --- INVENTORY -------- Micro Fission Core Particle Reactor Enhanced Biometal Leg Experimental Heat Sink Advanced Terrain Scan Processor Experimental Targeting Computer Core Analyzer Armor Integrity Analyzer Advanced Actuator Array Experimental Phase Shifter Layered Medium Armor Plating Experimental EM Disruption Field Experimental EM Disruption Field Remote Force Field Improved System Shield Axe Chainsword Great Axe [Rating: 136] Favorites ----------- Power Quantum Reactor Engine Light Angular Momentum Engine Power Core Neutrino Core Reactor Quantum Reactor Propulsion Carbon-fiber Leg Treads Light Treads Leg Carbon-fiber Leg Utility Improved Hacking Suite Device Microactuators Storage Large Storage Unit Processor Enhanced Optical Array Hackware Improved Hacking Suite Protection Layered Medium Armor Plating Weapon Heavy Hammer Energy Gun EM Pulse Gun Energy Cannon Heavy Plasma Cannon Ballistic Cannon Light Cannon Launcher Smartbomb Launcher Impact Weapon Heavy Hammer Slashing Weapon Axe Piercing Weapon Spear Build | -11 -10 -10 -8 -7 -7 -7 -7 -6 -6 -5 -5 -5 -5 -5 -4 -4 ------- Run | Yrd Mat Sub Mat Fac Low Low Dat Pro Fac Fac Ext Cet Arc Hub Fac Arm Slots Evolved 12 | . . . 4 2 . . . . 2 2 . . . . 2 . Power 1 | . . . . . . . . . 1 . . . . . . . Propulsion 3 | . . . 2 . . . . . . 1 . . . . . . Utility 8 | . . . 2 2 . . . . 1 1 . . . . 2 . Weapon . | . . . . . . . . . . . . . . . . . Parts Attached 296 | 6 9 3 28 22 4 2 13 3 44 1 36 5 9 38 20 53 Power 50 | 1 2 1 4 4 . . 3 . 10 . 5 1 2 7 2 8 Engine 16 | 1 2 1 2 2 . . . . 6 . 2 . . . . . Core 20 | . . . 2 2 . . 1 . 2 . 3 . . 2 1 7 Reactor 14 | . . . . . . . 2 . 2 . . 1 2 5 1 1 Propulsion 98 | 2 2 2 11 4 . . 3 . 10 1 14 3 . 15 4 27 Treads 14 | . 2 2 8 . . . . . . . . 2 . . . . Leg 84 | 2 . . 3 4 . . 3 . 10 1 14 1 . 15 4 27 Wheel . | . . . . . . . . . . . . . . . . . Hover . | . . . . . . . . . . . . . . . . . Flight . | . . . . . . . . . . . . . . . . . Utility 102 | 1 3 . 10 8 4 . 5 1 18 . 9 1 7 11 10 14 Device 43 | . . . 2 4 3 . 2 1 6 . 2 . 5 3 6 9 Storage 6 | 1 1 . 1 . . . . . 2 . 1 . . . . . Processor 13 | . 1 . 2 1 . . 1 . 2 . 2 . . 1 . 3 Hackware 10 | . . . . 2 . . . . 6 . . . . . 2 . Protection 30 | . 1 . 5 1 1 . 2 . 2 . 4 1 2 7 2 2 Artifact . | . . . . . . . . . . . . . . . . . Weapon 46 | 2 2 . 3 6 . 2 2 2 6 . 8 . . 5 4 4 Energy Gun 2 | 2 . . . . . . . . . . . . . . . . Energy Cannon 4 | . . . . . . . . . 1 . 1 . . 2 . . Ballistic Gun . | . . . . . . . . . . . . . . . . . Ballistic Cannon 1 | . . . . . . . . 1 . . . . . . . . Launcher 6 | . . . 1 . . 1 . . . . 1 . . 1 1 1 Special Weapon . | . . . . . . . . . . . . . . . . . Impact Weapon 12 | . 2 . 2 5 . . 1 . 2 . . . . . . . Slashing Weapon 19 | . . . . 1 . 1 1 1 3 . 5 . . 2 2 3 Piercing Weapon 2 | . . . . . . . . . . . 1 . . . 1 . Special Melee Weapon . | . . . . . . . . . . . . . . . . . Unidentified Prototypes 2 | . . . 2 . . . . . . . . . . . . . Corrupted Parts 8 | . . . . . . . 1 . 2 . . 3 1 1 . . System Corruption 69 | . . . . . . . 9 . 20 . . 18 12 10 . . Parts Lost 123 | . 2 1 6 11 . . 6 1 28 . 10 1 . 20 7 30 Power 26 | . 1 1 . 3 . . 1 . 5 . 1 . . 4 2 8 Propulsion 34 | . . . 2 4 . . 2 1 7 . 3 1 . 7 . 7 Utility 50 | . 1 . 2 4 . . 2 . 12 . 4 . . 8 5 12 Weapon 13 | . . . 2 . . . 1 . 4 . 2 . . 1 . 3 Highest Loss Streak 13 | . 2 1 2 4 . . 3 1 13 . 4 1 . 8 3 7 To Critical Strikes . | . . . . . . . . . . . . . . . . . Average Slot Usage (%) 88 | . 86 91 83 86 90 92 87 99 80 89 94 98 87 84 97 90 Engine 3 | . 10 5 4 1 . . . . 6 11 4 4 . . . . Core 3 | . . . 3 4 7 7 2 . 2 . 6 5 4 1 . 5 Reactor 2 | . . . . . . . 4 7 1 . . . 5 8 9 2 Treads 7 | . 3 28 26 . . . . . . . . 1 11 6 . . Leg 17 | . 24 . 4 18 23 23 20 29 20 24 28 25 5 12 25 24 Device 8 | . . . 3 12 13 15 11 14 10 11 7 5 9 9 19 14 Storage 7 | . 14 14 8 7 7 7 7 7 5 5 5 5 5 5 5 5 Processor 9 | . . 14 7 12 15 15 17 15 7 . 4 5 5 7 10 16 Hackware 6 | . . . . 9 . . . . 10 23 18 17 17 9 8 5 Protection 5 | . 3 . 7 4 7 7 5 7 2 . 3 11 6 9 6 3 Impact Weapon 7 | . 23 28 15 12 7 7 6 7 1 . . . . . . . Slashing Weapon 3 | . . . . 1 7 6 8 6 5 11 7 5 5 2 5 5 Piercing Weapon 1 | . . . . . . . . . . . 1 5 5 5 4 4 Naked Turns . | . . . . . . . . . . . . . . . . . Heaviest Build 119 | 12 34 31 44 44 45 46 60 60 75 44 89 95 99 108 119 103 Greatest Support 160 | 20 40 40 95 95 65 65 104 104 84 75 95 160 160 160 150 150 Greatest Overweight (x) 2 | . 1 . . 2 . . 1 . 1 . 1 1 . 2 . . Average Overweight (x) . | . . . . . . . . . . . . . . . . . Largest Inventory Capacity 20 | 8 15 15 15 15 15 15 15 15 15 10 20 20 20 20 20 20 Average Capacity 15 | 6 12 15 15 15 15 15 15 15 10 10 12 20 20 20 20 20 Most Carried 20 | 1 12 15 15 15 15 15 15 15 15 10 17 20 20 20 20 20 Average Carried 14 | . 7 13 14 13 14 14 14 14 9 9 10 19 19 18 18 14 Final Capacity 20 | 8 15 15 15 15 15 15 15 15 10 10 20 20 20 20 20 20 Final Carried 20 | 1 12 15 14 14 15 15 15 14 10 10 16 19 20 20 20 15 Class Distribution -------------------- 28% | Mutant 20% | Scavenger-Gladiator 16% | Hacker-Gladiator 12% | Gladiator 9% | Hacker-Mutant 7% | Scavenger-Mutant 4% | Assassin Dominant Class ---------------- Mutant | -10/Materials Mutant | -10/Subcaves Mutant | -8/Materials Assassin | -7/Factory Gladiator | -7/Lower Caves Gladiator | -7/Lower Caves Gladiator | -7/Data Miner Scavenger-Gladiator | -6/Proximity Caves Scavenger-Mutant | -6/Factory Hacker-Gladiator | -5/Factory Hacker-Gladiator | -5/Extension Hacker-Gladiator | -5/Cetus Hacker-Gladiator | -5/Archives Scavenger-Mutant | -5/Hub_04(d) Scavenger-Gladiator | -4/Factory Scavenger-Gladiator | -4/Armory Resources | -11 -10 -10 -8 -7 -7 -7 -7 -6 -6 -5 -5 -5 -5 -5 -4 -4 ----------- Run | Yrd Mat Sub Mat Fac Low Low Dat Pro Fac Fac Ext Cet Arc Hub Fac Arm Matter Collected 3410 | 239 101 30 290 210 40 75 141 51 468 . 389 58 137 439 261 481 Remotely . | . . . . . . . . . . . . . . . . . Salvage Created 12125 | . 758 237 1641 910 15 113 376 . 1357 . 1334 . 239 1888 1186 2071 Parts 441 | . 29 6 44 17 . 3 10 . 42 . 48 . 26 92 57 67 Haulers Intercepted 6 | . 2 . 4 . . . . . . . . . . . . . Recyclers Shooed 1 | . . . . . . . . . 1 . . . . . . . Parts Field Recycled . | . . . . . . . . . . . . . . . . . Retrieved Matter . | . . . . . . . . . . . . . . . . . Parts Self-Destructed 22 | . . 13 . . . 9 . . . . . . . . . . Prevented . | . . . . . . . . . . . . . . . . . Kills | -11 -10 -10 -8 -7 -7 -7 -7 -6 -6 -5 -5 -5 -5 -5 -4 -4 ------- Run | Yrd Mat Sub Mat Fac Low Low Dat Pro Fac Fac Ext Cet Arc Hub Fac Arm Combat Hostiles Destroyed 186 | . 15 6 25 16 1 4 4 . 17 . 14 . . 28 19 37 Melee 128 | . 8 1 14 10 . . 3 . 14 . 12 . . 25 10 31 Cannons 1 | . 1 . . . . . . . . . . . . . . . AOE 24 | . . . . . . 4 . . . . 2 . . 3 9 6 Classes Destroyed 18 | . 6 2 5 2 1 . . . . . . . . 1 1 . Worker 5 | . . . 3 1 . . . . . . . . . 1 . . Builder 7 | . . . . 1 . . . . 1 . . . . . 5 . Tunneler 1 | . . . . . . . . . . . . . . 1 . . Hauler 6 | . 2 . 4 . . . . . . . . . . . . . Recycler 16 | . 1 . 4 3 . . . . 3 . 4 . . . 1 . Mechanic 1 | . . . . . . . . . . . . . . . 1 . Operator 11 | . 1 . 1 . . . . . . . . . 7 1 1 . Watcher 11 | . 3 . 2 1 . . . . 1 . 1 . . 1 . 2 Swarmer 25 | . 3 . 3 3 . . . . . . 3 . . 5 . 8 Grunt 68 | . 12 . 11 7 . 4 . . 6 . 6 . . 3 10 9 Brawler 4 | . . . 2 . . . . . 1 . . . . . . 1 Duelist 8 | . . . 1 . . . . . 2 . . . . . . 5 Sentry 21 | . . 1 5 3 . . . . 2 . 3 . . 4 2 1 Specialist 2 | . . . 2 . . . . . . . . . . . . . Hunter 15 | . . . 1 2 . . . . 3 . 2 . . 1 . 6 Programmer 22 | . . . . 1 . . . . 3 . . . . 4 7 7 Enhanced Grunt 4 | . . . . . . . 4 . . . . . . . . . Lightning 9 | . . . . . . . . . . . . . . 9 . . Tracker 1 | . . . . . . . . . . . . . . 1 . . Combat Programmer 1 | . . . . . . . . . . . . . . 1 . . Subdweller 5 | . . 5 . . . . . . . . . . . . . . Thief 1 | . . . . . 1 . . . . . . . . . . . Best Kill Streak 14 | . 4 1 5 4 1 4 2 . 5 . 4 . 2 5 14 11 Combat Bots Only 9 | . 3 1 3 4 1 4 2 . 5 . 3 . . 5 9 9 Max Kills in Single Turn 5 | . 1 1 1 1 1 1 1 . 1 . 2 . 1 3 5 3 Gunslinging . | . . . . . . . . . . . . . . . . . Exploded 3 | . . . . . . 1 . . . . 2 . . 3 3 2 Melee 1 | . 1 1 1 1 . . 1 . 1 . 1 . . 1 1 1 Uniques/NPCs Destroyed . | . . . . . . . . . . . . . . . . . Combat | -11 -10 -10 -8 -7 -7 -7 -7 -6 -6 -5 -5 -5 -5 -5 -4 -4 -------- Run | Yrd Mat Sub Mat Fac Low Low Dat Pro Fac Fac Ext Cet Arc Hub Fac Arm Hostile Shots Fired 2062 | . 53 39 178 330 1 20 22 31 344 . 109 8 18 328 205 376 Missed 581 | . 10 10 51 109 . 4 4 9 98 . 25 4 5 61 95 96 Damage Taken 24501 | . 465 677 1682 1928 13 307 770 413 3157 . 1485 158 378 5579 1535 5954 Core 3568 | . 77 90 212 393 . 34 165 70 597 . 141 29 45 563 147 1005 Absorbed by Shields 2664 | . . . 281 319 5 . . . 697 . 256 . . 190 718 198 Redirected to Shielding 161 | . . . . . . . . . . . . . . 100 . 61 Ignored by Resistances 3306 | . . . . . . . 35 40 149 . 8 10 33 2222 174 635 Regen/Repaired (Parts) 1077 | . . . 20 . . . . . . . . . . . 320 737 Core Remaining (%) 41 | 100 . 33 61 . . . . 5 29 . . . . 22 . . Volleys Fired 41 | . . . . . . 5 . 6 . . 7 . . 13 5 5 Largest 1 | . . . . . . 1 . 1 . . 1 . . 1 1 1 Hottest 90 | . . . . . . 33 . 35 . . 90 . . 90 46 46 Shots Fired 45 | . . . . . . 5 . 7 2 . 7 . . 14 5 5 Gun . | . . . . . . . . . . . . . . . . . Cannon 28 | . . . . . . . . 7 2 . 6 . . 13 . . Launcher 17 | . . . . . . 5 . . . . 1 . . 1 5 5 Special . | . . . . . . . . . . . . . . . . . Kinetic 7 | . . . . . . . . 7 . . . . . . . . Thermal 19 | . . . . . . . . . . . 6 . . 13 . . Explosive 17 | . . . . . . 5 . . . . 1 . . 1 5 5 Electromagnetic 2 | . . . . . . . . . 2 . . . . . . . Robot Hit Streak 12 | . . . . . . 2 . . 3 . 10 . . 11 12 . Robot Miss Streak 1 | . . . . . . 1 . . . . . . . . . . Penetration Max . | . . . . . . . . . . . . . . . . . Secondary Targets . | . . . . . . . . . . . . . . . . . Shots Hit Robots 769 | . 34 21 97 54 1 4 26 . 75 . 71 . 11 175 51 149 Core Hits 321 | . 10 1 13 9 . 9 12 . 22 . 25 . 7 81 50 82 Critical Kills 6 | . 1 . 3 1 . . . . 1 . . . . . . . Critical Parts Destroyed 47 | . 8 2 19 11 . . 2 . 5 . . . . . . . Critical Strikes 129 | . 9 2 24 14 . . 6 . 11 . 9 . 1 29 5 19 Smash 55 | . 9 2 24 12 . . 2 . 6 . . . . . . . Sever 29 | . . . . 2 . . 4 . 5 . 9 . . 3 . 6 Impale 45 | . . . . . . . . . . . . . 1 26 5 13 Melee Attacks 1062 | . 49 53 137 80 3 5 46 11 110 3 78 . 12 203 85 187 Impact 367 | . 49 53 137 63 1 2 7 9 46 . . . . . . . Slashing 281 | . . . . 17 2 3 39 2 64 3 73 . 2 20 13 43 Piercing 414 | . . . . . . . . . . . 5 . 10 183 72 144 Sneak Attacks 57 | . 6 . 15 7 . . 1 . 4 . 8 . 9 4 3 . Combat Hostiles 2 | . . . 1 . . . . . . . 1 . . . . . Follow-up Attacks 86 | . 2 2 12 8 1 . 5 . 4 . 4 . 1 16 8 23 Damage Inflicted 34423 | . 1726 864 4192 2599 42 442 1068 . 3646 . 3337 . 658 6111 3866 5872 Guns . | . . . . . . . . . . . . . . . . . Cannons 213 | . . . . . . . . . . . 213 . . . . . Explosions 4196 | . . . . . . 395 . . . . 234 . . 305 1997 1265 Melee 29930 | . 1726 864 4192 2599 42 47 1068 . 3646 . 2890 . 658 5806 1818 4574 Ramming 84 | . . . . . . . . . . . . . . . 51 33 Kinetic . | . . . . . . . . . . . . . . . . . Thermal 213 | . . . . . . . . . . . 213 . . . . . Explosive 4196 | . . . . . . 395 . . . . 234 . . 305 1997 1265 Electromagnetic . | . . . . . . . . . . . . . . . . . Impact 11226 | . 1726 864 4192 2185 42 47 188 . 1982 . . . . . . . Slashing 8014 | . . . . 414 . . 880 . 1664 . 2840 . 82 642 332 1160 Piercing 10690 | . . . . . . . . . . . 50 . 576 5164 1486 3414 Highest Corruption 49 | . . . . . . . 9 9 32 . . 18 18 49 8 15 Average Corruption 15 | . . . . . . . 9 9 21 . . 16 8 24 5 12 Corruption Purged 30 | . . . . . . . . . . . . . 30 . . . Corruption Blocked . | . . . . . . . . . . . . . . . . . Effects 232 | . . . . . . . 12 15 70 . . 2 21 57 7 48 Message Errors 50 | . . . . . . . 1 7 16 . . . 4 13 2 7 Matter Fused 55 | . . . . . . . 5 2 15 . . 1 6 15 1 10 Heat Flow Errors 35 | . . . . . . . 2 2 8 . . . 4 10 2 7 Energy Discharges 37 | . . . . . . . 3 . 14 . . . 4 5 . 11 Parts Rejected 4 | . . . . . . . . . 1 . . . . 2 . 1 Parts Fused 2 | . . . . . . . 1 . . . . . . . 1 . Data Loss (minor) 22 | . . . . . . . . 2 7 . . 1 . 4 . 8 Data Loss (major) 10 | . . . . . . . . . 1 . . . 1 6 1 1 Misfires 4 | . . . . . . . . 1 2 . . . . 1 . . Alerts 6 | . . . . . . . . 1 1 . . . 2 . . 2 Misdirections 7 | . . . . . . . . . 5 . . . . 1 . 1 Overload Shots . | . . . . . . . . . . . . . . . . . Overflow Damage 4788 | . 563 226 1345 978 4 8 177 . 645 . 322 . 40 225 162 93 Projectiles . | . . . . . . . . . . . . . . . . . Explosions 176 | . . . . . . 8 . . . . . . . 97 57 14 Melee 4612 | . 563 226 1345 978 4 . 177 . 645 . 322 . 40 128 105 79 Knockbacks 43 | . 7 5 12 4 . . . . 14 . . . . . . 1 Impact 40 | . 6 5 12 4 . . . . 12 . . . . . . 1 Kinetic . | . . . . . . . . . . . . . . . . . Secondary 3 | . 1 . . . . . . . 2 . . . . . . . Self-Inflicted Damage 399 | . . . . . . 49 . . . . 50 . . 156 49 95 Shots 8 | . . . . . . 2 . . . . 1 . . 2 . 3 Rammed . | . . . . . . . . . . . . . . . . . Targets Rammed 5 | . . . . . . . . . . . . . . . 1 4 Kicked 5 | . . . . . . . . . . . . . . . 1 4 Crushed . | . . . . . . . . . . . . . . . . . Highest Temperature 263 | . 12 . 12 . . 27 222 175 251 . 30 . 247 257 254 263 Average Temperature 93 | . 12 . 9 . . 18 100 92 93 . 18 . 124 80 151 93 Received Heat Transfer 3643 | . 246 153 465 388 . 144 . 48 647 . 376 18 45 345 302 466 Effects 2 | . . . . . . . . . . . . . . 1 1 . Energy Bleed 2 | . . . . . . . . . . . . . . 1 1 . Siege Activations . | . . . . . . . . . . . . . . . . . Robots Corrupted . | . . . . . . . . . . . . . . . . . Combat Hostiles . | . . . . . . . . . . . . . . . . . Parts Fried 65 | . 13 3 30 12 3 . . . 4 . . . . . . . Impact Corruptions 134 | . 21 8 46 36 1 . 3 . 19 . . . . . . . Robots Melted . | . . . . . . . . . . . . . . . . . Combat Hostiles . | . . . . . . . . . . . . . . . . . Parts Melted . | . . . . . . . . . . . . . . . . . Heat Transferred 300 | . . . . . . . . . . . 300 . . . . . Parts Sabotaged 2 | . . . . . . . . . . . . . . . . 2 Parts Stolen . | . . . . . . . . . . . . . . . . . Parts Stripped . | . . . . . . . . . . . . . . . . . Power Chain Reactions . | . . . . . . . . . . . . . . . . . Alert | -11 -10 -10 -8 -7 -7 -7 -7 -6 -6 -5 -5 -5 -5 -5 -4 -4 ------- Run | Yrd Mat Sub Mat Fac Low Low Dat Pro Fac Fac Ext Cet Arc Hub Fac Arm Peak Influence 789 | . 266 . 393 261 . . . . 182 66 285 169 245 641 581 789 Initial 231 | . . . . 90 . . . . . 47 32 65 . . 205 231 Average 171 | . 108 . 135 128 . . . . 62 53 113 98 124 305 207 394 Maximum Alert Level 3 | . 1 . 1 1 . . . . . . 1 . 1 2 2 3 Low Security (%) 67 | 100 89 . 76 88 . . . . 100 100 86 100 60 25 61 3 Level 1 23 | . 10 . 23 11 . . . . . . 13 . 39 40 17 64 Level 2 8 | . . . . . . . . . . . . . . 33 20 24 Level 3 . | . . . . . . . . . . . . . . . . 8 Level 4 . | . . . . . . . . . . . . . . . . . Level 5 . | . . . . . . . . . . . . . . . . . High Security . | . . . . . . . . . . . . . . . . . Max Security . | . . . . . . . . . . . . . . . . . Squads Dispatched 39 | . 3 . 4 3 . . . . 7 2 3 . . 8 5 4 Investigation 7 | . 2 . . 2 . . . . . 1 2 . . . . . Extermination 11 | . . . . 1 . . . . 4 . . . . 2 2 2 Reinforcement 14 | . 1 . 4 . . . . . 1 1 1 . . 3 2 1 Assault 2 | . . . . . . . . . . . . . . . 1 1 Garrison 3 | . . . . . . . . . 2 . . . . 1 . . Intercept 2 | . . . . . . . . . . . . . . 2 . . Searches Triggered . | . . . . . . . . . . . . . . . . . Construction Impeded 2 | . . . . . . . . . . . . . . 1 1 . Haulers Reinforced . | . . . . . . . . . . . . . . . . . Active Scanning Responses . | . . . . . . . . . . . . . . . . . Cargo Convoy Interrupts 1 | . . . . 1 . . . . . . . . . . . . Stealth | -11 -10 -10 -8 -7 -7 -7 -7 -6 -6 -5 -5 -5 -5 -5 -4 -4 --------- Run | Yrd Mat Sub Mat Fac Low Low Dat Pro Fac Fac Ext Cet Arc Hub Fac Arm Distress Signals 20 | . 2 . 5 2 . . . . 2 . 1 1 . 3 2 2 Communications Jammed . | . . . . . . . . . . . . . . . . . Distress Signals . | . . . . . . . . . . . . . . . . . Times Spotted 350 | . 19 7 54 21 3 4 4 1 34 2 28 9 7 63 42 52 Peak Tracking Total 12 | . 3 2 8 4 4 4 2 1 7 1 5 5 3 7 12 10 Tactical Retreats 22 | . . . 7 1 . . 1 . 8 . 3 . . . 2 . Traps | -11 -10 -10 -8 -7 -7 -7 -7 -6 -6 -5 -5 -5 -5 -5 -4 -4 ------- Run | Yrd Mat Sub Mat Fac Low Low Dat Pro Fac Fac Ext Cet Arc Hub Fac Arm Traps Triggered 12 | . 2 1 1 1 . . . . 2 . 2 . . 1 1 1 Indirectly . | . . . . . . . . . . . . . . . . . Trap Hack Attempts . | . . . . . . . . . . . . . . . . . Triggered . | . . . . . . . . . . . . . . . . . Disarmed . | . . . . . . . . . . . . . . . . . Reprogrammed . | . . . . . . . . . . . . . . . . . Reused 1 | . . 1 . . . . . . . . . . . . . . Traps Extracted . | . . . . . . . . . . . . . . . . . Installed 1 | . . 1 . . . . . . . . . . . . . . Triggered 5 | . . 1 . 3 . . . . 1 . . . . . . . Most Traps Carried 1 | . . 1 . . . . . . . . . . . . . . Machines | -11 -10 -10 -8 -7 -7 -7 -7 -6 -6 -5 -5 -5 -5 -5 -4 -4 ---------- Run | Yrd Mat Sub Mat Fac Low Low Dat Pro Fac Fac Ext Cet Arc Hub Fac Arm Machines Disabled 16 | . 1 1 . . . . . . 1 . 1 . 1 7 1 3 Max in Single Turn 2 | . 1 1 . . . . . . 1 . 1 . . 2 1 1 Garrison Access 4 | . . . . 1 . . . . 1 . . . . 2 . . Network Hub 3 | . . . . . . . . . . . . . . 3 . . Machines Repaired . | . . . . . . . . . . . . . . . . . Machines Dismantled . | . . . . . . . . . . . . . . . . . Machines Sabotaged . | . . . . . . . . . . . . . . . . . Overloaded Fab Kills . | . . . . . . . . . . . . . . . . . Hacking | -11 -10 -10 -8 -7 -7 -7 -7 -6 -6 -5 -5 -5 -5 -5 -4 -4 --------- Run | Yrd Mat Sub Mat Fac Low Low Dat Pro Fac Fac Ext Cet Arc Hub Fac Arm Machines Accessed 71 | . 5 1 6 6 1 1 4 . 6 2 20 . . 11 6 2 Terminals 51 | . 5 . 5 3 . . . . 4 1 19 . . 9 4 1 Fabricators 4 | . . . . 2 . . . . 1 1 . . . . . . Repair Stations 4 | . . . 1 . . . . . . . . . . . 2 1 Recycling Units 1 | . . . . . . . . . . . 1 . . . . . Scanalyzers . | . . . . . . . . . . . . . . . . . Garrison Access 4 | . . . . 1 . . . . 1 . . . . 2 . . Total Hacks 241 | . 15 1 20 12 1 1 31 . 11 6 50 . . 40 34 19 Successful 139 | . 5 1 8 8 1 1 31 . 4 2 30 . . 18 21 9 Failed 101 | . 9 . 12 4 . . . . 7 4 20 . . 22 13 10 Catastrophic 17 | . 1 . 4 . . . . . 3 . 1 . . 4 1 3 Database Lockouts 1 | . 1 . . . . . . . . . . . . . . . Manual 79 | . 9 . 8 6 . . . . 3 . 7 1 . 28 17 . Terminals 159 | . 15 . 15 9 . . . . 8 2 47 . . 36 20 7 Fabricators 8 | . . . . 2 . . . . 2 4 . . . . . . Repair Stations 31 | . . . 5 . . . . . . . . . . . 14 12 Recycling Units 3 | . . . . . . . . . . . 3 . . . . . Scanalyzers . | . . . . . . . . . . . . . . . . . Garrison Access 6 | . . . . 1 . . . . 1 . . . . 4 . . Terminal Hacks 92 | . 5 1 5 2 1 1 31 . 2 . 28 . . 8 8 . Record 11 | . . . . . . . 11 . . . . . . . . . Part Schematic 13 | . . . . . . . 12 . . . . . . . 1 . Robot Schematic 5 | . . . . . . . 5 . . . . . . . . . Robot Analysis 2 | . 2 . . . . . . . . . . . . . . . Prototype ID Bank 14 | . 2 . 2 . . . 3 . 1 . 6 . . . . . Open Door 12 | . . . . . 1 1 . . . . 10 . . . . . Level Access Points 1 | . . . . . . . . . 1 . . . . . . . Branch Access Points 1 | . . . . 1 . . . . . . . . . . . . Machine Index 1 | . . . . 1 . . . . . . . . . . . . Alert Level 4 | . . . 1 . . . . . . . 1 . . 1 1 . Unreport Threat 12 | . . . 2 . . . . . . . 3 . . 4 3 . Locate Traps 8 | . 1 . . . . . . . . . 3 . . 2 2 . Dispatch Records 1 | . . . . . . . . . . . 1 . . . . . Security Status 1 | . . . . . . . . . . . 1 . . . . . Patrol Status 1 | . . . . . . . . . . . . . . . 1 . Hauler Manifests 1 | . . . . . . . . . . . 1 . . . . . Zone Layout 3 | . . . . . . . . . . . 2 . . 1 . . Derelict Proto ID Bank 1 | . . 1 . . . . . . . . . . . . . . Fabricator Hacks 4 | . . . . 2 . . . . . 2 . . . . . . Network Status 2 | . . . . 1 . . . . . 1 . . . . . . Load Schematic 1 | . . . . . . . . . . 1 . . . . . . Build 1 | . . . . 1 . . . . . . . . . . . . Repair Station Hacks 21 | . . . 3 . . . . . . . . . . . 9 9 Scan Component 12 | . . . 2 . . . . . . . . . . . 5 5 Repair 9 | . . . 1 . . . . . . . . . . . 4 4 Recycling Unit Hacks 1 | . . . . . . . . . . . 1 . . . . . Retrieve Components 1 | . . . . . . . . . . . 1 . . . . . Scanalyzer . | . . . . . . . . . . . . . . . . . Garrison Access Hacks 4 | . . . . 1 . . . . 1 . . . . 2 . . Seal Access 4 | . . . . 1 . . . . 1 . . . . 2 . . Unauthorized Hacks 17 | . . . . 3 . . . . 1 . 1 . . 8 4 . Terminals 17 | . . . . 3 . . . . 1 . 1 . . 8 4 . Track 2 | . . . . . . . . . . . . . . 2 . . Assimilate 3 | . . . . . . . . . 1 . . . . 2 . . Botnet 6 | . . . . 2 . . . . . . 1 . . 1 2 . Disrupt 3 | . . . . . . . . . . . . . . 2 1 . Operators 3 | . . . . 1 . . . . . . . . . 1 1 . Fabricators . | . . . . . . . . . . . . . . . . . Repair Stations . | . . . . . . . . . . . . . . . . . Recycling Units . | . . . . . . . . . . . . . . . . . Scanalyzers . | . . . . . . . . . . . . . . . . . Garrison Access . | . . . . . . . . . . . . . . . . . Data Cores Recovered 2 | . . . . . . . . . . . 1 . . . 1 . Used . | . . . . . . . . . . . . . . . . . Hacking Detections 46 | . 4 . 6 4 . . . . 5 2 11 . . 7 5 2 Full Trace Events 4 | . 1 . . . . . . . . 1 2 . . . . . Feedback Events . | . . . . . . . . . . . . . . . . . Feedback Blocked . | . . . . . . . . . . . . . . . . . Robot Schematics Acquired 5 | . . . . . . . 5 . . . . . . . . . Robots Built . | . . . . . . . . . . . . . . . . . Authchips . | . . . . . . . . . . . . . . . . . Time . | . . . . . . . . . . . . . . . . . Total Robot Build Rating . | . . . . . . . . . . . . . . . . . Part Schematics Acquired 13 | . . . . . . . 12 . . . . . . . 1 . Parts Built 1 | . . . . 1 . . . . . . . . . . . . Authchips . | . . . . . . . . . . . . . . . . . Time 39 | . . . . 39 . . . . . . . . . . . . Total Part Build Rating 7 | . . . . 7 . . . . . . . . . . . . Parts Repaired 9 | . . . 1 . . . . . . . . . . . 4 4 Time 693 | . . . 44 . . . . . . . . . . . 161 488 Parts Recycled . | . . . . . . . . . . . . . . . . . Recycled Matter . | . . . . . . . . . . . . . . . . . Retrieved Matter . | . . . . . . . . . . . . . . . . . Retrieved Components 9 | . . . . . . . . . . . 9 . . . . . Parts Scanalyzed . | . . . . . . . . . . . . . . . . . Part Schematics Acquired . | . . . . . . . . . . . . . . . . . Parts Damaged . | . . . . . . . . . . . . . . . . . Bothacking | -11 -10 -10 -8 -7 -7 -7 -7 -6 -6 -5 -5 -5 -5 -5 -4 -4 ------------ Run | Yrd Mat Sub Mat Fac Low Low Dat Pro Fac Fac Ext Cet Arc Hub Fac Arm Used RIF Installer . | . . . . . . . . . . . . . . . . . Robots Hacked . | . . . . . . . . . . . . . . . . . Non-combat . | . . . . . . . . . . . . . . . . . Combat . | . . . . . . . . . . . . . . . . . Robot Hacks Applied . | . . . . . . . . . . . . . . . . . Relay Couplers Released 3 | . . . . 2 . . . . . . . . . 1 . . Machine Destruction 3 | . . . . 2 . . . . . . . . . 1 . . Fabnet Peak Effective % . | . . . . . . . . . . . . . . . . . Robots Rewired 7 | . . . 1 . . . . . . . 3 . . . . 3 Allies Hacked . | . . . . . . . . . . . . . . . . . Hacks Repelled . | . . . . . . . . . . . . . . . . . Allies | -11 -10 -10 -8 -7 -7 -7 -7 -6 -6 -5 -5 -5 -5 -5 -4 -4 -------- Run | Yrd Mat Sub Mat Fac Low Low Dat Pro Fac Fac Ext Cet Arc Hub Fac Arm Total Allies 28 | . . . 1 . . . . . 1 . 16 5 . . . 5 Largest Group 12 | . . . 1 . . . . . 1 . 12 12 7 5 . 5 Highest-Rated Group 784 | . . . 16 . . . . . 26 . 460 784 646 480 . 242 Highest-Rated Ally 159 | . . . 16 . . . . . 26 . 159 159 145 96 . 50 Total Orders 2 | . . . . . . . . . . . . . . 2 . . STAY 2 | . . . . . . . . . . . . . . 2 . . Ally Attacks 240 | . . . 6 . . . . . . . 73 65 31 53 . 12 Total Damage 8205 | . . . 82 . . . . . . . 1730 2420 1151 2317 . 505 Kills 44 | . . . 1 . . . . . . . 10 10 5 17 . 1 Allies Corrupted 1 | . . . . . . . . . . . . . . 1 . . Allies Melted . | . . . . . . . . . . . . . . . . . Intel | -11 -10 -10 -8 -7 -7 -7 -7 -6 -6 -5 -5 -5 -5 -5 -4 -4 ------- Run | Yrd Mat Sub Mat Fac Low Low Dat Pro Fac Fac Ext Cet Arc Hub Fac Arm Robot Analysis Total 136 | . 2 . . . . . 134 . . . . . . . . . Derelict Logs Recovered 6 | . . 2 . . 2 1 . 1 . . . . . . . . Drone Launches . | . . . . . . . . . . . . . . . . . Drone Recoveries . | . . . . . . . . . . . . . . . . . Exploration | -11 -10 -10 -8 -7 -7 -7 -7 -6 -6 -5 -5 -5 -5 -5 -4 -4 ------------- Run | Yrd Mat Sub Mat Fac Low Low Dat Pro Fac Fac Ext Cet Arc Hub Fac Arm Turns Passed 17194 | 51 1204 1343 2125 1305 427 1019 619 493 1683 125 1377 402 917 2004 913 1187 Spaces Moved 8983 | 41 665 739 1001 707 329 783 277 348 974 97 816 165 173 969 511 388 Core 29 | 10 . . . . . . . . 19 . . . . . . . Treads 2344 | . 91 739 785 . . . . . . . . 34 173 522 . . Legs 6610 | 31 574 . 216 707 329 783 277 348 955 97 816 131 . 447 511 388 Wheels . | . . . . . . . . . . . . . . . . . Hover . | . . . . . . . . . . . . . . . . . Flight . | . . . . . . . . . . . . . . . . . Fastest Speed 50 | 50 120 160 130 125 126 126 122 120 50 120 120 160 160 100 100 100 Average Speed 138 | 102 153 160 152 136 126 126 156 120 134 120 129 183 160 148 102 107 Slowest Speed 260 | 120 240 160 160 260 126 126 195 122 190 120 190 190 160 260 104 120 Overloaded Moves . | . . . . . . . . . . . . . . . . . Propulsion Burnouts . | . . . . . . . . . . . . . . . . . Robots Hopped 11 | . . . . . . 7 . . . . . 4 . . . . Cave-ins Triggered . | . . . . . . . . . . . . . . . . . Exploration Rate (%) 52 | 5 93 45 63 24 56 85 82 53 30 4 86 59 88 81 18 25 Regions Visited 16 Branch Regions 10 Pre-discovered Areas 32 | . . 2 . . 2 . 28 . . . . . . . . . Known Exits Taken 3 | . . . . 1 . . . 1 1 . . . . . . . Unknown Exits Taken 13 | 1 1 1 1 . 1 1 1 . . 1 1 1 1 1 1 . Scrap Searched 12 | . . 5 . . 3 3 . 1 . . . . . . . . Spaces Dug 81 | . 1 2 5 8 1 3 . 10 14 2 . . . 14 17 4 Terrain Destroyed 408 | . 1 2 5 8 1 29 . 10 14 2 13 . . 192 79 52 Melee 71 | . 1 2 5 8 1 3 . 9 14 2 . . . 5 17 4 Projectile 11 | . . . . . . . . 1 . . . . . 10 . . AOE 325 | . . . . . . 26 . . . . 13 . . 177 61 48 Terrain Rammed 1 | . . . . . . . . . . . . . . . 1 . Walls Destroyed 1 | . . . . . . . . . . . . . . . 1 . Machines Disabled . | . . . . . . . . . . . . . . . . . Actions | -11 -10 -10 -8 -7 -7 -7 -7 -6 -6 -5 -5 -5 -5 -5 -4 -4 --------- Run | Yrd Mat Sub Mat Fac Low Low Dat Pro Fac Fac Ext Cet Arc Hub Fac Arm Total 12451 | 47 769 816 1407 915 337 795 389 395 1167 103 1056 263 802 1307 819 1064 Wait 1943 | . 35 23 217 102 . 7 58 29 17 . 90 85 599 71 195 415 Move 8945 | 40 664 738 1000 706 328 768 276 347 973 96 815 156 172 968 510 388 Hop 11 | . . . . . . 7 . . . . . 4 . . . . Pick Up 106 | 1 12 3 9 7 1 1 2 . 12 2 7 6 5 18 10 10 Fast Attach 130 | 6 4 1 20 9 2 . 5 . 27 . 13 1 5 19 5 13 Attach 73 | . 1 . 4 8 . . 2 1 10 1 2 2 1 9 10 22 Detach 23 | . 2 . 7 5 . . . . 3 . 1 . 1 1 2 1 Swap 93 | . 4 2 4 5 2 2 6 2 7 . 21 2 3 10 5 18 Drop 99 | . 4 2 17 5 2 1 2 1 12 1 17 7 6 15 3 4 Fire 41 | . . . . . . 5 . 6 . . 7 . . 13 5 5 Melee 931 | . 43 46 117 68 2 4 38 9 106 3 70 . 10 183 72 160 Ram 1 | . . . . . . . . . . . . . . . 1 . Kick 5 | . . . . . . . . . . . . . . . 1 4 Crush . | . . . . . . . . . . . . . . . . . Escape Stasis 2 | . . . . . . . . . . . 2 . . . . . Rewire 47 | . . . 12 . . . . . . . 11 . . . . 24 Trap 1 | . . 1 . . . . . . . . . . . . . . Miscellaneous . | . . . . . . . . . . . . . . . . . Route ------- -11/Scrapyard -10/Materials (discovered 6 exits: [*Mat x3] / [*Min x2] / *Sub) -10/Subcaves (discovered 2 exits: *Mat x2) -8/Materials (discovered 3 exits: *Fac x2 / [*Sto]) -7/Factory (discovered 3 exits: *Fac / *Low x2) -7/Lower Caves -7/Lower Caves (discovered 2 exits: Fac / *Dat) -7/Data Miner -6/Proximity Caves -6/Factory (discovered 4 exits: *Fac x4) -5/Factory -5/Extension (discovered 2 exits: *Fac / *Cet) -5/Cetus (discovered 2 exits: *Fac / [*Arc]) -5/Archives (discovered 3 exits: *Fac / *Hub x2) -5/Hub_04(d) (discovered 3 exits: *Fac x3) -4/Factory (discovered 3 exits: [*Upp x2] / *Arm) -4/Armory History --------- Turn | Location | Event 4 | -11/Scrapyard | Discovered new exit (range 15) 52 | -11/Scrapyard | Entered Materials 129 | -10/Materials | Discovered new exit (range 2) 296 | -10/Materials | Discovered new exit (range 16) 311 | -10/Materials | Build established: Mutant 390 | -10/Materials | Discovered new exit (range 15) 403 | -10/Materials | Central database locked down 475 | -10/Materials | Discovered new exit (range 16) 577 | -10/Materials | Discovered new exit (range 16) 755 | -10/Materials | Discovered new exit (range 14) 1256 | -10/Materials | Entered Subcaves 1258 | -10/Subcaves | Learned 4 Materials zone layouts 1367 | -10/Subcaves | Learned location of Zion (-6) 1367 | -10/Subcaves | Met a Zionite searching for "candidates" 1468 | -10/Subcaves | Discovered new exit (range 10) 1557 | -10/Subcaves | Disturbed a concealed Subdweller 1585 | -10/Subcaves | Disturbed a concealed Subdweller 1998 | -10/Subcaves | Shifting Twisted Machinery released Barrage Gun 2005 | -10/Subcaves | Shifting Twisted Machinery released Spk. Treads 2051 | -10/Subcaves | Core integrity fell below 50% 2309 | -10/Subcaves | Visited 4L-MR0's lab 2324 | -10/Subcaves | Found Cargo Legs 2565 | -10/Subcaves | Discovered new exit (range 12) 2570 | -10/Subcaves | Shifting Twisted Machinery released Sub. Power Source 2599 | -10/Subcaves | Entered Materials 2599 | -8/Materials | Evolved 4 slots: Propulsion x2, Utility x2 3212 | -8/Materials | Discovered new exit (range 17) 4180 | -8/Materials | Discovered new exit (range 5) 4284 | -8/Materials | Attached Cargo Legs, gained temporary slots: Utility x2 4505 | -8/Materials | Discovered new exit (range 11) 4699 | -8/Materials | Repaired Broken Shield Generator 4724 | -8/Materials | Entered Factory 4724 | -7/Factory | Evolved 2 slots: Utility x2 4948 | -7/Factory | Identified exit to Lower Caves 5036 | -7/Factory | Build established: Assassin 5392 | -7/Factory | Discovered new exit (range 12) 5628 | -7/Factory | Lost 4 parts (1p3n) 5709 | -7/Factory | Fabricated Adv. Actuator Array (x1) 5746 | -7/Factory | Cargo convoy interrupted 5815 | -7/Factory | Core integrity fell below 50% 6029 | -7/Factory | Entered Lower Caves 6135 | -7/Lower Caves | Build established: Gladiator 6255 | -7/Lower Caves | Spotted B-75 Beast 6432 | -7/Lower Caves | Discovered new exit (range 16) 6456 | -7/Lower Caves | Entered another Lower Caves area 7125 | -7/Lower Caves | Identified exit to Factory 7188 | -7/Lower Caves | Discovered new exit (range 17) 7475 | -7/Lower Caves | Entered Data Miner 7475 | -7/Data Miner | Discovered new exit (range 6) 7494 | -7/Data Miner | Met Data Miner 7521 | -7/Data Miner | Learned location of Section 7 (-3) 7521 | -7/Data Miner | Acquired the access code to Warlord's prototype stash 7546 | -7/Data Miner | Received God Mode back door access code from Data Miner 7562 | -7/Data Miner | Interfaced with the Data Conduit 7664 | -7/Data Miner | Core integrity fell below 20% 7680 | -7/Data Miner | Lost 3 parts (1p1u1w) 7785 | -7/Data Miner | Found Exp. Thermal Shield 7796 | -7/Data Miner | Lost 3 parts (2n1u) 8094 | -7/Data Miner | Entered Proximity Caves 8259 | -6/Proximity Caves | Learned Factory garrison access intel 8335 | -6/Proximity Caves | Build established: Scavenger-Gladiator 8544 | -6/Proximity Caves | Spotted B-75 Beast 8570 | -6/Proximity Caves | Discovered exit to Factory (range 14) 8587 | -6/Proximity Caves | Entered Factory 8587 | -6/Factory | Evolved 2 slots: Power x1, Utility x1 8588 | -6/Factory | Loaded intel: 277 machine locations 8589 | -6/Factory | Loaded intel: 4 garrison access locations 8805 | -6/Factory | Lost 4 parts (2u2w) 8834 | -6/Factory | System corruption reached 10% 8908 | -6/Factory | Core integrity fell below 50% 8963 | -6/Factory | Lost 13 parts (3p3n5u2w) 9219 | -6/Factory | Build established: Scavenger-Mutant 9512 | -6/Factory | Spotted B-75 Beast 9689 | -6/Factory | System corruption reached 30% 9901 | -6/Factory | Garrison activated, responded to threat 9980 | -6/Factory | Lost 3 parts (2p1n) 10066 | -6/Factory | Identified exit to Factory 10175 | -6/Factory | Found Launcher Loader 10270 | -6/Factory | Entered another Factory area 10270 | -5/Factory | Evolved 2 slots: Propulsion x1, Utility x1 10271 | -5/Factory | Loaded intel: 279 machine locations 10352 | -5/Factory | Discovered new exit (range 11) 10395 | -5/Factory | Entered Extension 10396 | -5/Extension | Loaded intel: 51 machine locations 10563 | -5/Extension | Build established: Hacker-Gladiator 10631 | -5/Extension | Rescued a captive Derelict 10914 | -5/Extension | Lost 4 parts (1p2n1w) 10938 | -5/Extension | Rescued a captive Derelict 10961 | -5/Extension | Rescued a captive Derelict 10966 | -5/Extension | Rescued a captive Derelict 11007 | -5/Extension | Rescued A7 11021 | -5/Extension | Rescued a captive Derelict 11024 | -5/Extension | Rescued a captive Derelict 11050 | -5/Extension | Rescued a captive Derelict 11283 | -5/Extension | Spotted B-75 Beast 11287 | -5/Extension | Spotted B-75 Beast 11304 | -5/Extension | Allies destroyed B-75 Beast 11324 | -5/Extension | Allies destroyed B-75 Beast 11434 | -5/Extension | Rescued a captive Derelict 11440 | -5/Extension | Rescued a captive Derelict 11584 | -5/Extension | Rescued a captive Derelict 11607 | -5/Extension | Rescued a captive Derelict 11642 | -5/Extension | Rescued a captive Derelict 11739 | -5/Extension | Discovered new exit (range 10) 11741 | -5/Extension | Discovered new exit (range 6) 11772 | -5/Extension | Entered Cetus 11772 | -5/Cetus | Accompanied by 12 allies (A7) 11773 | -5/Cetus | Loaded intel: 24 machine locations 11777 | -5/Cetus | Acquired a Cetus Manufacturing Module code from A7 11796 | -5/Cetus | Spotted Cetus Guard 11797 | -5/Cetus | Spotted Cetus Guard 11798 | -5/Cetus | Spotted Cetus Guard 11800 | -5/Cetus | Spotted Cetus Guard 11820 | -5/Cetus | Allies destroyed Cetus Guard 11826 | -5/Cetus | Allies destroyed Cetus Guard 11829 | -5/Cetus | Allies destroyed Cetus Guard 11846 | -5/Cetus | Lost 5 allies 11946 | -5/Cetus | Started Cetus Manufacturing Module 11959 | -5/Cetus | Discovered new exit (range 21) 11971 | -5/Cetus | Manufactured an Enhanced Grunt 11996 | -5/Cetus | Manufactured an Enhanced Grunt 12021 | -5/Cetus | Manufactured an Enhanced Grunt 12046 | -5/Cetus | Manufactured an Enhanced Grunt 12071 | -5/Cetus | Manufactured an Enhanced Grunt 12075 | -5/Cetus | Spotted Cetus Guard 12075 | -5/Cetus | Spotted Cetus Guard 12075 | -5/Cetus | Spotted Cetus Guard 12075 | -5/Cetus | Spotted Cetus Guard 12079 | -5/Cetus | Discovered new exit (range 22) 12088 | -5/Cetus | Allies destroyed Cetus Guard 12096 | -5/Cetus | Allies destroyed Cetus Guard 12098 | -5/Cetus | Allies destroyed Cetus Guard 12113 | -5/Cetus | Met Revision 17 12117 | -5/Cetus | System corruption reached 10% 12128 | -5/Cetus | Lost 4 allies 12174 | -5/Cetus | Entered Archives 12174 | -5/Archives | Accompanied by 7 allies (A7) 12175 | -5/Archives | Loaded intel: 8 machine locations 12199 | -5/Archives | Discovered new exit (range 22) 12233 | -5/Archives | Discovered new exit (range 14) 12764 | -5/Archives | Discovered new exit (range 14) 13091 | -5/Archives | Entered Hub_04(d) 13091 | -5/Hub_04(d) | Accompanied by 5 allies 13092 | -5/Hub_04(d) | Loaded intel: 75 machine locations 13173 | -5/Hub_04(d) | Discovered new exit (range 10) 13192 | -5/Hub_04(d) | Garrison activated, responded to threat 13741 | -5/Hub_04(d) | Build established: Hacker-Mutant 13793 | -5/Hub_04(d) | Discovered new exit (range 6) 13901 | -5/Hub_04(d) | Intercept squad dispatched 13902 | -5/Hub_04(d) | Spotted Tracker 13919 | -5/Hub_04(d) | Destroyed Tracker 13929 | -5/Hub_04(d) | Spotted Combat Programmer 13947 | -5/Hub_04(d) | Destroyed Combat Programmer 13964 | -5/Hub_04(d) | Lost 7 parts (2p1n4u) 14249 | -5/Hub_04(d) | Build established: Scavenger-Gladiator 14284 | -5/Hub_04(d) | Network Hub disabled 14285 | -5/Hub_04(d) | Core integrity fell below 50% 14300 | -5/Hub_04(d) | Spotted Lightning 14300 | -5/Hub_04(d) | Spotted Lightning 14316 | -5/Hub_04(d) | Spotted Lightning 14339 | -5/Hub_04(d) | Destroyed Lightning 14406 | -5/Hub_04(d) | System corruption reached 30% 14407 | -5/Hub_04(d) | Destroyed Lightning 14425 | -5/Hub_04(d) | Destroyed Lightning 14442 | -5/Hub_04(d) | Lost 8 parts (2p3n3u) 14444 | -5/Hub_04(d) | Found Exp. EM Disruption Field 14554 | -5/Hub_04(d) | Network Hub disabled 14554 | -5/Hub_04(d) | Spotted Lightning 14554 | -5/Hub_04(d) | Spotted Lightning 14557 | -5/Hub_04(d) | Spotted Lightning 14581 | -5/Hub_04(d) | Destroyed Lightning 14607 | -5/Hub_04(d) | Destroyed Lightning 14652 | -5/Hub_04(d) | Destroyed Lightning 14653 | -5/Hub_04(d) | Network Hub disabled 14662 | -5/Hub_04(d) | Found Exp. Phase Shifter 14666 | -5/Hub_04(d) | Found Exp. EM Disruption Field 14737 | -5/Hub_04(d) | Build established: Scavenger-Mutant 14911 | -5/Hub_04(d) | Discovered new exit (range 6) 14923 | -5/Hub_04(d) | Spotted Lightning 14923 | -5/Hub_04(d) | Spotted Lightning 14923 | -5/Hub_04(d) | Spotted Lightning 14983 | -5/Hub_04(d) | Destroyed Lightning 15011 | -5/Hub_04(d) | Destroyed Lightning 15038 | -5/Hub_04(d) | Destroyed Lightning 15057 | -5/Hub_04(d) | Found Exp. Targeting Computer 15060 | -5/Hub_04(d) | Found Exp. Phase Shifter 15064 | -5/Hub_04(d) | Found Exp. Targeting Computer 15095 | -5/Hub_04(d) | Entered Factory 15095 | -4/Factory | Evolved 2 slots: Utility x2 15096 | -4/Factory | Loaded intel: 239 machine locations 15156 | -4/Factory | Build established: Scavenger-Gladiator 15192 | -4/Factory | Repaired Adv. Actuator Array 15347 | -4/Factory | Repaired Enh. Biometal Leg 15370 | -4/Factory | Repaired Microactuators 15426 | -4/Factory | Repaired Enh. Biometal Leg 15844 | -4/Factory | Destroyed 9 combat bots 15851 | -4/Factory | Lost 3 parts (1p2u) 15886 | -4/Factory | First assault squad dispatched 15952 | -4/Factory | Discovered new exit (range 8) 15964 | -4/Factory | Discovered new exit (range 20) 16002 | -4/Factory | Discovered new exit (range 8) 16008 | -4/Factory | Entered Armory 16009 | -4/Armory | Loaded intel: 81 machine locations 16141 | -4/Armory | System corruption reached 10% 16157 | -4/Armory | Lost 3 parts (1p1n1u) 16292 | -4/Armory | Repaired Broken Enh. Biometal Leg 16434 | -4/Armory | Repaired Broken Enh. Biometal Leg 16546 | -4/Armory | Lost 5 parts (1p2n2u) 16635 | -4/Armory | Core integrity fell below 50% 16641 | -4/Armory | Repaired Enh. Biometal Leg 16754 | -4/Armory | Repaired Enh. Biometal Leg 16806 | -4/Armory | First assault squad dispatched 17039 | -4/Armory | Destroyed 9 combat bots 17049 | -4/Armory | Lost 7 parts (2p1n3u1w) 17184 | -4/Armory | Core integrity fell below 20% 17195 | -4/Armory | Destroyed by D-63 Destroyer with Heavy Rocket Launcher Last Messages --------------- 17183_ Destroyed Shock Absorption System. 17183_ D-63 Destroyer knocked back. 17184_ Transfer Shaft disabled. 17184_ Chainsword destroyed. 17184_ Rainmaker 7b destroyed. 17184_ D-63 Destroyer knocked back. 17184_ Rainmaker 7a destroyed. 17184_ Rainmaker 7c destroyed. 17186_ KD-R19(g) destroyed. 17186_ Exp. Heat Sink destroyed. 17187_ Adv. Force Field destroyed. 17187_ Enh. Biometal Leg destroyed. 17187_ D-63 Destroyer destroyed. 17187_ Reinforced Shell breached. 17188_ Lgt. Quantum Reactor destroyed. 17189_ Lgt. Nuclear Core destroyed. 17190_ D-63 Destroyer destroyed. 17193_ The unstable cave ceiling collapses. 17193_ Adv. Force Field destroyed. 17194_ The unstable cave ceiling collapses. Map ----- +----------------------------------------------------+ | ??????????????????????????"""?????""???????"""???? | | ??????????????????????????"""????????????????????? | | ??????????????????????????"""????????????????????? | | ???????????????????"T"????"""????????????????????? | | ???????????????????"""????"""???????????????"""??? | | ????????????????????????????????????????????"""??? | | ??????""T""?????????????????????????????????"""??? | | ??????"""""??????????????????????????????????????? | | ???????????????####??????????????????????????????? | | ???????????????? ?????????????????????????#????? | | ?????????? ????? ??????????????????????? #????? | | ????????? ? ? ??????#???????????????? #????? | | ????????? """" ###### ???????????????# #????? | | ???????? ""F" ???????????????# #????? | | ???????? ^ ??????????###### #????? | | ????????? ############ #????? | | ?????????? ###### | | ?"""""??""""" | | ?"""""??""""" | | ?"""""??""""" | | ??????????????? i | | ????????????????? | | ??????????????????? | | ???????????????????## # | | ???????????????????# d | | ???????????????????# @ d # # | | ???????????????????# # # | | ???????????????????# | | ???????????????????## " ### | | ????????????????????# ## | | ????????????????????### "" ## | | ??????????????????????# """ ## | | ??????????????????????## # """ ##/#####+## | | ???????????????????????## ###### # + | | ????????????????????????# ?????#| # !!!! ## | | ????????????????????????##?????######## !!!!!! #? | | ??????????????????????????????????????# #? | | ??????????????????????????????????????###########? | | | | | | | | | | | | | | | | | | | | | | | | | +----------------------------------------------------+ Best States ------------- Heat Dissipation 69 Energy Generation 57 Energy Capacity 600 Matter Stores 300 Matter Capacity 300 Sight Range 22 Terrain Scan Range 16 Terrain Scan Density 210 Power Amplification 30 Corruption Containment 12 Armor Coverage 675 Resistance: TH 30 Resistance: EM 75 Core Shielding 30 Utility Shielding 66 Melee Speed Boost 50 Phase Shifting 20 Evasion (%) 75 Melee Accuracy 12 Core Analysis 9 Armor Integrity Analysis 30 Recoil Reduction 4 Offensive Hacking 36 Defensive Hacking 12 Item Schematics ----------------- Combat Drone Bay | -7/Data Miner | Free Lgt. Regenerative Plating | -7/Data Miner | Free Cld. Aerolev Unit | -7/Data Miner | Free Thermal Defense Suite | -7/Data Miner | Free Force Rifle | -7/Data Miner | Free Antigrav System | -7/Data Miner | Free Adv. Shield Generator | -7/Data Miner | Free Adv. Plasma Cannon | -7/Data Miner | Free Imp. Actuator Array | -7/Data Miner | Free Lance | -7/Data Miner | Free Imp. Fusion Compressor | -7/Data Miner | Free Matter Neutralizer | -7/Data Miner | Free Nanoactuators | -4/Factory | Hacked Robot Schematics ------------------ G-50 Soldier | -7/Data Miner | Free B-48 Gladiator | -7/Data Miner | Free S-27 Virus | -7/Data Miner | Free Y-54 Guardian | -7/Data Miner | Free L-41 Fighter | -7/Data Miner | Free Fabricated ------------ Adv. Actuator Array | x1 | -7/Factory | Preloaded Alien Tech Used ----------------- None Achievements -------------- None Challenges ------------ None Game ------ Seed VisualWeightBeam Manual? 0 Play Time 01:55:05 Cumulative 359.9 hours Start 2024.04.26 @ 07:21:12 End 2024.04.26 @ 20:02:09 Sessions 5 Manual Loads 0 Difficulty Rogue Special Mode None Game No. 234 Rogue 234 Adventurer 0 Explorer 0 Win Type - Total 23 Types 16/2/2/1/1/0/0/1/0 Lore% 85 Gallery% 86 Achievement% 79 Wizard Run 0 Options --------- Layout 0 ASCII 0 Keyboard 1 Movement Numpad Keybinds 0 Fullscreen 2 Font 18/SmallcapsGlow Map View 76x50 Zoom Use 0% Tactical HUD 1 Map Filters NONE Filters NONE Steam 1 RUN: 1e3daf93-f654-4525-8fa9-94fe277c6e5c